fUSD/lending_fUSD_20250205
["ID","MTS","AMOUNT","RATE_DAILY","PERIOD"]
[351777499,1738785054686,-500.0,0.00010022,2]
[351777500,1738785054695,-500.0,0.00010022,2]
[351777501,1738785054705,-500.0,0.00010022,2]
[351777502,1738785054715,-698.9,0.00010022,2]
[351777503,1738785054724,-500.0,0.00010022,2]
[351777504,1738785054733,-500.0,0.00010022,2]
[351777505,1738785054742,-500.0,0.00010022,2]
[351777506,1738785054755,-500.0,0.00010022,2]
[351777507,1738785054767,-500.0,0.00010022,2]
[351777508,1738785054776,-500.0,0.00010022,2]
[351777509,1738785054787,-569.62,0.00010022,2]
[351777510,1738785054797,-500.0,0.00010022,2]
[351777511,1738785054807,-500.0,0.00010022,2]
[351777512,1738785054817,-157.98,0.00010022,2]
[351777513,1738785054827,-636.47,0.00010022,2]
[351777514,1738785054837,-500.0,0.00010022,2]
[351777515,1738785054847,-500.0,0.00010022,2]
[351777516,1738785054856,-500.0,0.00010022,2]
[351777517,1738785054866,-500.0,0.00010022,2]
[351777518,1738785054875,-500.0,0.00010022,2]
[351777519,1738785054884,-500.0,0.00010022,2]
[351777520,1738785054893,-500.0,0.00010022,2]
[351777521,1738785054902,-500.0,0.00010022,2]
[351777522,1738785054912,-500.0,0.00010022,2]
[351777523,1738785054921,-368.526034,0.00010022,2]
[351777524,1738785054931,-500.0,0.00010022,2]
[351777525,1738785054940,-500.0,0.00010022,2]
[351777526,1738785054949,-500.0,0.00010022,2]
[351777527,1738785054959,-500.0,0.00010022,2]
[351777528,1738785054967,-500.0,0.00010022,2]
[351777529,1738785054976,-500.0,0.00010022,2]
[351777530,1738785054986,-500.0,0.00010022,2]
[351777531,1738785054995,-500.0,0.00010022,2]
[351777532,1738785055004,-730.39,0.00010022,2]
[351777533,1738785055013,-559.62,0.00010022,2]
[351777534,1738785055022,-500.0,0.00010022,2]
[351777535,1738785055031,-500.0,0.00010022,2]
[351777536,1738785055040,-3939.16,0.00010022,2]
[351777537,1738785055050,-500.0,0.00010022,2]
[351777538,1738785055061,-500.0,0.00010022,2]
[351777539,1738785055070,-500.0,0.00010023,2]
[351777540,1738785055079,-175.94,0.00010023,2]
[351777541,1738785055088,-296.94,0.00010023,2]
[351777542,1738785055097,-500.0,0.00010023,2]
[351777543,1738785055107,-500.0,0.00010023,2]
[351777544,1738785055116,-500.0,0.00010023,2]
[351777545,1738785055126,-435.28,0.00010023,2]
[351777546,1738785055136,-500.0,0.00010023,2]
[351777547,1738785055146,-500.0,0.00010023,2]
[351777548,1738785055156,-201.62,0.00010023,2]
[351777549,1738785055165,-500.0,0.00010023,2]
[351777550,1738785055175,-461.46,0.00010023,2]
[351777551,1738785055184,-365.98,0.00010023,2]
[351777552,1738785055193,-500.0,0.00010023,2]
[351777553,1738785055203,-500.0,0.00010023,2]
[351777554,1738785055212,-500.0,0.00010023,2]
[351777555,1738785055222,-366.68,0.00010023,2]
[351777556,1738785055231,-553.82,0.00010023,2]
[351777557,1738785055241,-500.0,0.00010023,2]
[351777558,1738785055250,-500.0,0.00010023,2]
[351777559,1738785055260,-500.0,0.00010023,2]
[351777560,1738785055269,-543.62,0.00010023,2]
[351777561,1738785055278,-500.0,0.00010023,2]
[351777562,1738785055287,-500.0,0.00010023,2]
[351777563,1738785055296,-500.0,0.00010024,2]
[351777564,1738785055305,-500.0,0.00010024,2]
[351777565,1738785055315,-500.0,0.00010024,2]
[351777566,1738785055324,-389.24,0.00010024,2]
[351777567,1738785055334,-500.0,0.00010024,2]
[351777568,1738785055343,-262.8,0.00010024,2]
[351777569,1738785055353,-619.78,0.00010024,2]
[351777570,1738785055362,-500.0,0.00010024,2]
[351777571,1738785055373,-500.0,0.00010024,2]
[351777572,1738785055382,-376.343635,0.00010024,2]
[351777573,1738785055391,-500.0,0.00010024,2]
[351777574,1738785055401,-500.0,0.00010024,2]
[351777575,1738785055411,-500.0,0.00010024,2]
[351777576,1738785055421,-500.0,0.00010024,2]
[351777577,1738785055431,-367.12,0.00010024,2]
[351777578,1738785055440,-500.0,0.00010024,2]
[351777579,1738785055450,-500.0,0.00010024,2]
[351777580,1738785055459,-500.0,0.00010024,2]
[351777581,1738785055468,-500.0,0.00010024,2]
[351777582,1738785055478,-543.62,0.00010024,2]
[351777583,1738785055487,-538.72,0.00010024,2]
[351777584,1738785055497,-2394.49,0.00010024,2]
[351777585,1738785055506,-211.86991966,0.00010024,2]
[351777586,1738785055516,-500.0,0.00010024,2]
[351777587,1738785055526,-532.4,0.00010024,2]
[351777588,1738785055535,-631.28,0.00010024,2]
[351777589,1738785055545,-500.0,0.00010024,2]
[351777590,1738785055557,-1306.47,0.00010024,2]
[351777591,1738785055566,-1056.68,0.00010024,2]
[351777592,1738785055576,-276.3,0.00010024,2]
[351777593,1738785055585,-250.54,0.00010024,2]
[351777594,1738785055596,-500.0,0.00010024,2]
[351777595,1738785055606,-247.78,0.00010024,2]
[351777596,1738785055617,-500.0,0.00010024,2]
[351777597,1738785055626,-983.69,0.00010024,2]
[351777598,1738785055636,-500.0,0.00010024,2]
[351777599,1738785055646,-500.0,0.00010024,2]
[351777600,1738785055656,-693.38,0.00010024,2]
[351777601,1738785055665,-577.14,0.00010024,2]
[351777602,1738785055675,-265.9,0.00010024,2]
[351777603,1738785055686,-500.0,0.00010024,2]
[351777604,1738785055696,-720.01,0.00010024,2]
[351777605,1738785055705,-151.32,0.00010024,2]
[351777606,1738785055715,-606.36,0.00010024,2]
[351777607,1738785055725,-226.88,0.00010024,2]
[351777608,1738785055735,-500.0,0.00010024,2]
[351777609,1738785055745,-500.0,0.00010024,2]
[351777610,1738785055759,-281.66,0.00010024,2]
[351777611,1738785055770,-908.79,0.00010024,2]
[351777612,1738785055780,-215.92,0.00010024,2]
[351777613,1738785055790,-500.0,0.00010024,2]
[351777614,1738785055800,-500.0,0.00010024,2]
[351777615,1738785055814,-248.78,0.00010024,2]
[351777616,1738785055824,-500.0,0.00010024,2]
[351777617,1738785055834,-500.0,0.00010024,2]
[351777618,1738785055844,-500.0,0.00010024,2]
[351777619,1738785055853,-212.42,0.00010025,2]
[351777620,1738785055863,-500.0,0.00010025,2]
[351777621,1738785055873,-609.44,0.00010025,2]
[351777622,1738785055882,-500.0,0.00010025,2]
[351777623,1738785055891,-500.0,0.00010025,2]
[351777624,1738785055900,-500.0,0.00010025,2]
[351777625,1738785055910,-500.0,0.00010025,2]
[351777626,1738785055919,-608.24,0.00010025,2]
[351777627,1738785055929,-493.5,0.00010025,2]
[351777628,1738785055938,-348.26,0.00010025,2]
[351777629,1738785055948,-334.4,0.00010025,2]
[351777630,1738785055958,-500.0,0.00010025,2]
[351777631,1738785055967,-500.0,0.00010025,2]
[351777632,1738785055977,-500.0,0.00010025,2]
[351777633,1738785055987,-500.0,0.00010025,2]
[351777634,1738785055996,-549.28,0.00010025,2]
[351777635,1738785056006,-348.99,0.00010025,2]
[351777636,1738785056017,-500.0,0.00010025,2]
[351777637,1738785056026,-373.42,0.00010025,2]
[351777638,1738785056036,-500.0,0.00010025,2]
[351777639,1738785056046,-500.0,0.00010025,2]
[351777640,1738785056058,-500.0,0.00010025,2]
[351777641,1738785056069,-500.0,0.00010025,2]
[351777642,1738785056080,-500.0,0.00010025,2]
[351777643,1738785056091,-524.92,0.00010025,2]
[351777644,1738785056101,-361.64,0.00010025,2]
[351777645,1738785056111,-500.0,0.00010025,2]
[351777646,1738785056120,-392.0,0.00010025,2]
[351777647,1738785056130,-500.0,0.00010025,2]
[351777648,1738785056141,-500.0,0.00010025,2]
[351777649,1738785056151,-500.0,0.00010025,2]
[351777650,1738785056161,-500.0,0.00010025,2]
[351777651,1738785056171,-500.0,0.00010025,2]
[351777652,1738785056180,-379.4,0.00010025,2]
[351777653,1738785056190,-429.16,0.00010025,2]
[351777654,1738785056199,-500.0,0.00010025,2]
[351777655,1738785056209,-500.0,0.00010025,2]
[351777656,1738785056219,-274.22,0.00010025,2]
[351777657,1738785056228,-500.0,0.00010025,2]
[351777658,1738785056237,-500.0,0.00010025,2]
[351777659,1738785056247,-626.76,0.00010025,2]
[351777660,1738785056256,-500.0,0.00010025,2]
[351777661,1738785056266,-500.0,0.00010025,2]
[351777662,1738785056275,-500.0,0.00010136,2]
[351777663,1738785056285,-500.0,0.00010136,2]
[351777664,1738785056294,-500.0,0.00010136,2]
[351777665,1738785056306,-500.0,0.00010136,2]
[351777666,1738785056315,-621.61,0.00010136,2]
[351777667,1738785056325,-399.85,0.00010136,2]
[351777668,1738785056335,-500.0,0.00010136,2]
[351777669,1738785056345,-500.0,0.00010136,2]
[351777670,1738785056354,-556.32,0.00010136,2]
[351777671,1738785056364,-500.0,0.00010136,2]
[351777672,1738785056374,-500.0,0.00010136,2]
[351777673,1738785056384,-709.56,0.00010136,2]
[351777674,1738785056394,-656.34,0.00010136,2]
[351777675,1738785056404,-500.0,0.00010136,2]
[351777676,1738785056413,-909.66,0.00010137,2]
[351777677,1738785056422,-500.0,0.00010159,2]
[351777678,1738785056431,-500.0,0.00010159,2]
[351777679,1738785056441,-500.0,0.00010159,2]
[351777680,1738785056451,-500.0,0.00010159,2]
[351777681,1738785056460,-500.0,0.00010159,2]
[351777682,1738785056470,-500.0,0.00010159,2]
[351777683,1738785056480,-500.0,0.00010159,2]
[351777684,1738785056490,-579.84,0.00010159,2]
[351777685,1738785056500,-500.0,0.00010159,2]
[351777686,1738785056510,-500.0,0.00010159,2]
[351777687,1738785056519,-500.0,0.00010159,2]
[351777688,1738785056530,-333.32,0.00010159,2]
[351777689,1738785056540,-500.0,0.00010159,2]
[351777690,1738785056550,-500.0,0.00010159,2]
[351777691,1738785056560,-500.0,0.00010159,2]
[351777692,1738785056570,-500.0,0.00010159,2]
[351777693,1738785056580,-225.96,0.00010159,2]
[351777694,1738785056590,-500.0,0.00010159,2]
[351777695,1738785056600,-474.96,0.00010159,2]
[351777696,1738785056609,-500.0,0.00010159,2]
[351777697,1738785056619,-500.0,0.00010159,2]
[351777698,1738785056628,-414.42,0.00010159,2]
[351777699,1738785056638,-500.0,0.00010159,2]
[351777700,1738785056647,-500.0,0.00010159,2]
[351777701,1738785056656,-500.0,0.00010159,2]
[351777702,1738785056666,-500.0,0.00010159,2]
[351777703,1738785056675,-500.0,0.00010159,2]
[351777704,1738785056685,-367.34,0.00010159,2]
[351777705,1738785056694,-500.0,0.00010159,2]
[351777706,1738785056703,-500.0,0.00010159,2]
[351777707,1738785056713,-500.0,0.00010159,2]
[351777708,1738785056723,-500.0,0.00010159,2]
[351777709,1738785056734,-500.0,0.00010159,2]
[351777710,1738785056743,-500.0,0.00010159,2]
[351777711,1738785056753,-500.0,0.00010159,2]
[351777712,1738785056765,-336.92,0.00010159,2]
[351777713,1738785056775,-500.0,0.00010159,2]
[351777714,1738785056784,-500.0,0.00010159,2]
[351777715,1738785056795,-500.0,0.00010159,2]
[351777716,1738785056807,-500.0,0.00010159,2]
[351777717,1738785056816,-500.0,0.00010159,2]
[351777718,1738785056826,-500.0,0.00010159,2]
[351777719,1738785056836,-500.0,0.00010159,2]
[351777720,1738785056847,-500.0,0.00010159,2]
[351777721,1738785056857,-500.0,0.00010159,2]
[351777722,1738785056867,-500.0,0.00010159,2]
[351777723,1738785056876,-1053.61,0.00010159,2]
[351777724,1738785056887,-500.0,0.00010159,2]
[351777725,1738785056898,-500.0,0.00010159,2]
[351777726,1738785056908,-643.7,0.00010159,2]
[351777727,1738785056918,-294.82,0.00010159,2]
[351777728,1738785056928,-788.53,0.00010159,2]
[351777729,1738785056938,-500.0,0.00010159,2]
[351777730,1738785056948,-500.0,0.00010159,2]
[351777731,1738785056958,-500.0,0.00010159,2]
[351777732,1738785056967,-500.0,0.00010159,2]
[351777733,1738785056977,-500.0,0.00010159,2]
[351777734,1738785056987,-500.0,0.00010159,2]
[351777735,1738785056996,-500.0,0.00010159,2]
[351777736,1738785057006,-500.0,0.00010159,2]
[351777737,1738785057016,-500.0,0.00010159,2]
[351777738,1738785057026,-500.0,0.00010159,2]
[351777739,1738785057037,-500.0,0.00010159,2]
[351777740,1738785057049,-500.0,0.00010159,2]
[351777741,1738785057061,-500.0,0.00010159,2]
[351777742,1738785057070,-500.0,0.00010159,2]
[351777743,1738785057080,-500.0,0.00010159,2]
[351777744,1738785057090,-500.0,0.00010159,2]
[351777745,1738785057099,-576.46,0.00010159,2]
[351777746,1738785057110,-500.0,0.00010159,2]
[351777747,1738785057120,-500.0,0.00010159,2]
[351777748,1738785057130,-500.0,0.00010159,2]
[351777749,1738785057141,-704.1,0.00010159,2]
[351777750,1738785057151,-500.0,0.00010159,2]
[351777751,1738785057162,-500.0,0.00010159,2]
[351777752,1738785057173,-500.0,0.00010159,2]
[351777753,1738785057183,-500.0,0.00010159,2]
[351777754,1738785057193,-500.0,0.00010159,2]
[351777755,1738785057203,-713.04,0.00010159,2]
[351777756,1738785057213,-500.0,0.00010159,2]
[351777757,1738785057223,-500.0,0.00010159,2]
[351777758,1738785057234,-500.0,0.00010159,2]
[351777759,1738785057244,-698.9,0.00010159,2]
[351777760,1738785057254,-500.0,0.00010159,2]
[351777761,1738785057264,-500.0,0.00010159,2]
[351777762,1738785057273,-500.0,0.00010159,2]
[351777763,1738785057283,-500.0,0.00010159,2]
[351777764,1738785057293,-500.0,0.00010159,2]
[351777765,1738785057304,-500.0,0.00010159,2]
[351777766,1738785057315,-576.72,0.00010159,2]
[351777767,1738785057325,-500.0,0.00010159,2]
[351777768,1738785057335,-636.47,0.00010159,2]
[351777769,1738785057345,-500.0,0.00010159,2]
[351777770,1738785057355,-500.0,0.00010159,2]
[351777771,1738785057366,-500.0,0.00010159,2]
[351777772,1738785057376,-500.0,0.00010159,2]
[351777773,1738785057386,-500.0,0.00010159,2]
[351777774,1738785057397,-500.0,0.00010159,2]
[351777775,1738785057407,-500.0,0.00010159,2]
[351777776,1738785057417,-456.92,0.00010159,2]
[351777777,1738785057427,-500.0,0.00010159,2]
[351777778,1738785057437,-368.526034,0.00010159,2]
[351777779,1738785057447,-500.0,0.00010159,2]
[351777780,1738785057457,-500.0,0.00010159,2]
[351777781,1738785057467,-500.0,0.00010159,2]
[351777782,1738785057477,-364.68,0.00010159,2]
[351777783,1738785057487,-500.0,0.00010159,2]
[351777784,1738785057498,-500.0,0.00010159,2]
[351777785,1738785057508,-500.0,0.00010159,2]
[351777786,1738785057519,-206.38681079,0.00010159,2]
[351777787,1738785057529,-730.39,0.00010159,2]
[351777788,1738785057540,-559.62,0.00010159,2]
[351777789,1738785057549,-500.0,0.00010159,2]
[351777790,1738785057561,-500.0,0.00010159,2]
[351777791,1738785057571,-3939.16,0.00010159,2]
[351777792,1738785057581,-500.0,0.00010159,2]
[351777793,1738785057591,-500.0,0.00010159,2]
[351777794,1738785057601,-500.0,0.0001016,2]
[351777795,1738785057611,-500.0,0.0001016,2]
[351777796,1738785057621,-500.0,0.0001016,2]
[351777797,1738785057631,-229.13,0.0001016,2]
[351777798,1738785057641,-385.6,0.0001016,2]
[351777799,1738785057651,-500.0,0.0001016,2]
[351777800,1738785057661,-500.0,0.0001016,2]
[351777801,1738785057670,-492.62,0.0001016,2]
[351777802,1738785057680,-500.0,0.0001016,2]
[351777803,1738785057691,-500.0,0.0001016,2]
[351777804,1738785057701,-158.48,0.0001016,2]
[351777805,1738785057712,-219.62,0.0001016,2]
[351777806,1738785057722,-500.0,0.0001016,2]
[351777807,1738785057732,-500.0,0.0001016,2]
[351777808,1738785057742,-500.0,0.0001016,2]
[351777809,1738785057754,-400.42,0.00010161,2]
[351777810,1738785057766,-500.0,0.00010161,2]
[351777811,1738785057776,-346.28,0.00010161,2]
[351777812,1738785057787,-500.0,0.00010161,2]
[351777813,1738785057798,-500.0,0.00010161,2]
[351777814,1738785057808,-376.343635,0.00010161,2]
[351777815,1738785057818,-500.0,0.00010161,2]
[351777816,1738785057828,-500.0,0.00010161,2]
[351777817,1738785057840,-458.72,0.00010161,2]
[351777818,1738785057850,-500.0,0.00010161,2]
[351777819,1738785057861,-526.0,0.00010161,2]
[351777820,1738785057871,-500.0,0.00010161,2]
[351777821,1738785057881,-500.0,0.00010161,2]
[351777822,1738785057892,-500.0,0.00010161,2]
[351777823,1738785057902,-543.62,0.00010161,2]
[351777824,1738785057912,-2394.49,0.00010161,2]
[351777825,1738785057922,-500.0,0.00010161,2]
[351777826,1738785057932,-631.28,0.00010161,2]
[351777827,1738785057942,-500.0,0.00010161,2]
[351777828,1738785057953,-1306.47,0.00010161,2]
[351777829,1738785057963,-1056.68,0.00010161,2]
[351777830,1738785057974,-500.0,0.00010161,2]
[351777831,1738785057985,-500.0,0.00010161,2]
[351777832,1738785057995,-983.69,0.00010161,2]
[351777833,1738785058005,-500.0,0.00010161,2]
[351777834,1738785058015,-500.0,0.00010161,2]
[351777835,1738785058025,-693.38,0.00010161,2]
[351777836,1738785058035,-500.0,0.00010161,2]
[351777837,1738785058046,-720.01,0.00010161,2]
[351777838,1738785058058,-500.0,0.00010161,2]
[351777839,1738785058068,-500.0,0.00010161,2]
[351777840,1738785058078,-908.79,0.00010161,2]
[351777841,1738785058090,-500.0,0.00010161,2]
[351777842,1738785058100,-500.0,0.00010161,2]
[351777843,1738785058110,-500.0,0.00010161,2]
[351777844,1738785058121,-500.0,0.00010161,2]
[351777845,1738785058131,-222.9,0.00010161,2]
[351777846,1738785058142,-500.0,0.00010162,2]
[351777847,1738785058152,-535.36,0.00010162,2]
[351777848,1738785058163,-430.72,0.00010162,2]
[351777849,1738785058173,-500.0,0.00010162,2]
[351777850,1738785058182,-500.0,0.00010162,2]
[351777851,1738785058192,-241.88,0.00010162,2]
[351777852,1738785058203,-500.0,0.00010162,2]
[351777853,1738785058214,-500.0,0.00010162,2]
[351777854,1738785058387,-500.0,0.00010162,2]
[351777855,1738785058398,-500.0,0.00010162,2]
[351777856,1738785058408,-500.0,0.00010162,2]
[351777857,1738785058418,-500.0,0.00010162,2]
[351777858,1738785058428,-500.0,0.00010162,2]
[351777859,1738785058438,-500.0,0.00010162,2]
[351777860,1738785058448,-457.6,0.00010162,2]
[351777861,1738785058459,-500.0,0.00010162,2]
[351777862,1738785058471,-500.0,0.00010162,2]
[351777863,1738785058482,-500.0,0.00010162,2]
[351777864,1738785058492,-500.0,0.00010162,2]
[351777865,1738785058502,-500.0,0.00010162,2]
[351777866,1738785058513,-500.0,0.00010162,2]
[351777867,1738785058524,-500.0,0.00010162,2]
[351777868,1738785058543,-234.78,0.00010162,2]
[351777869,1738785058555,-439.26,0.00010162,2]
[351777870,1738785058565,-154.84,0.00010162,2]
[351777871,1738785058575,-500.0,0.00010162,2]
[351777872,1738785058587,-494.16,0.00010162,2]
[351777873,1738785058597,-500.0,0.00010164,2]
[351777874,1738785058607,-190.0,0.00010192,2]
[351777875,1738785058618,-151.0,0.00010273,2]
[351777876,1738785058627,-500.0,0.00010273,2]
[351777877,1738785058639,-500.0,0.00010273,2]
[351777878,1738785058648,-500.0,0.00010273,2]
[351777879,1738785058657,-500.0,0.00010273,2]
[351777880,1738785058668,-621.61,0.00010273,2]
[351777881,1738785058678,-500.0,0.00010273,2]
[351777882,1738785058688,-500.0,0.00010273,2]
[351777883,1738785058698,-556.32,0.00010273,2]
[351777884,1738785058709,-500.0,0.00010273,2]
[351777885,1738785058719,-299.86,0.00010273,2]
[351777886,1738785058728,-709.56,0.00010273,2]
[351777887,1738785058738,-656.34,0.00010273,2]
[351777888,1738785058747,-500.0,0.00010296,2]
[351777889,1738785058757,-500.0,0.00010296,2]
[351777890,1738785058772,-562.78,0.00010296,2]
[351777891,1738785058781,-500.0,0.00010296,2]
[351777892,1738785058791,-500.0,0.00010296,2]
[351777893,1738785058800,-469.1,0.00010296,2]
[351777894,1738785058813,-500.0,0.00010296,2]
[351777895,1738785058822,-500.0,0.00010296,2]
[351777896,1738785058832,-500.0,0.00010296,2]
[351777897,1738785058843,-412.68,0.00010296,2]
[351777898,1738785058853,-500.0,0.00010296,2]
[351777899,1738785058863,-500.0,0.00010296,2]
[351777900,1738785058872,-500.0,0.00010296,2]
[351777901,1738785058882,-245.78,0.00010296,2]
[351777902,1738785058892,-366.84,0.00010296,2]
[351777903,1738785058902,-500.0,0.00010296,2]
[351777904,1738785058911,-500.0,0.00010296,2]
[351777905,1738785058922,-500.0,0.00010296,2]
[351777906,1738785058932,-500.0,0.00010296,2]
[351777907,1738785058941,-500.0,0.00010296,2]
[351777908,1738785058951,-500.0,0.00010296,2]
[351777909,1738785058960,-500.0,0.00010296,2]
[351777910,1738785058969,-500.0,0.00010296,2]
[351777911,1738785058979,-500.0,0.00010296,2]
[351777912,1738785058988,-500.0,0.00010296,2]
[351777913,1738785058998,-256.34,0.00010296,2]
[351777914,1738785059009,-388.3,0.00010296,2]
[351777915,1738785059022,-500.0,0.00010296,2]
[351777916,1738785059032,-394.04,0.00010296,2]
[351777917,1738785059042,-500.0,0.00010296,2]
[351777918,1738785059052,-500.0,0.00010296,2]
[351777919,1738785059063,-500.0,0.00010296,2]
[351777920,1738785059073,-500.0,0.00010296,2]
[351777921,1738785059083,-500.0,0.00010296,2]
[351777922,1738785059093,-500.0,0.00010296,2]
[351777923,1738785059103,-316.48,0.00010296,2]
[351777924,1738785059112,-500.0,0.00010296,2]
[351777925,1738785059122,-500.0,0.00010296,2]
[351777926,1738785059132,-500.0,0.00010296,2]
[351777927,1738785059143,-1053.61,0.00010296,2]
[351777928,1738785059153,-490.7,0.00010296,2]
[351777929,1738785059164,-500.0,0.00010296,2]
[351777930,1738785059174,-788.53,0.00010296,2]
[351777931,1738785059184,-279.9,0.00010296,2]
[351777932,1738785059195,-500.0,0.00010296,2]
[351777933,1738785059205,-500.0,0.00010296,2]
[351777934,1738785059215,-500.0,0.00010296,2]
[351777935,1738785059226,-500.0,0.00010296,2]
[351777936,1738785059236,-500.0,0.00010296,2]
[351777937,1738785059246,-500.0,0.00010296,2]
[351777938,1738785059256,-500.0,0.00010296,2]
[351777939,1738785059267,-406.28,0.00010296,2]
[351777940,1738785059277,-500.0,0.00010296,2]
[351777941,1738785059286,-500.0,0.00010296,2]
[351777942,1738785059296,-500.0,0.00010296,2]
[351777943,1738785059308,-500.0,0.00010296,2]
[351777944,1738785059320,-500.0,0.00010296,2]
[351777945,1738785059330,-500.0,0.00010296,2]
[351777946,1738785059339,-500.0,0.00010296,2]
[351777947,1738785059350,-576.46,0.00010296,2]
[351777948,1738785059361,-500.0,0.00010296,2]
[351777949,1738785059371,-500.0,0.00010296,2]
[351777950,1738785059382,-704.1,0.00010296,2]
[351777951,1738785059392,-500.0,0.00010296,2]
[351777952,1738785059403,-500.0,0.00010296,2]
[351777953,1738785059413,-500.0,0.00010296,2]
[351777954,1738785059424,-500.0,0.00010296,2]
[351777955,1738785059434,-500.0,0.00010296,2]
[351777956,1738785059444,-500.0,0.00010296,2]
[351777957,1738785059454,-713.04,0.00010296,2]
[351777958,1738785059464,-500.0,0.00010296,2]
[351777959,1738785059475,-631.66,0.00010296,2]
[351777960,1738785059485,-500.0,0.00010296,2]
[351777961,1738785059495,-698.9,0.00010296,2]
[351777962,1738785059505,-500.0,0.00010296,2]
[351777963,1738785059514,-500.0,0.00010296,2]
[351777964,1738785059525,-500.0,0.00010296,2]
[351777965,1738785059534,-500.0,0.00010296,2]
[351777966,1738785059544,-339.54,0.00010296,2]
[351777967,1738785059554,-500.0,0.00010296,2]
[351777968,1738785059567,-500.0,0.00010296,2]
[351777969,1738785059577,-636.47,0.00010296,2]
[351777970,1738785059587,-500.0,0.00010296,2]
[351777971,1738785059596,-500.0,0.00010296,2]
[351777972,1738785059607,-500.0,0.00010296,2]
[351777973,1738785059617,-500.0,0.00010296,2]
[351777974,1738785059626,-419.18,0.00010296,2]
[351777975,1738785059636,-500.0,0.00010296,2]
[351777976,1738785059647,-500.0,0.00010296,2]
[351777977,1738785059658,-500.0,0.00010296,2]
[351777978,1738785059669,-368.526034,0.00010296,2]
[351777979,1738785059678,-500.0,0.00010296,2]
[351777980,1738785059688,-628.5,0.00010296,2]
[351777981,1738785059698,-212.34,0.00010296,2]
[351777982,1738785059708,-500.0,0.00010296,2]
[351777983,1738785059717,-500.0,0.00010296,2]
[351777984,1738785059726,-500.0,0.00010296,2]
[351777985,1738785059736,-730.39,0.00010296,2]
[351777986,1738785059745,-559.62,0.00010296,2]
[351777987,1738785059762,-500.0,0.00010296,2]
[351777988,1738785059772,-500.0,0.00010296,2]
[351777989,1738785059782,-3939.16,0.00010296,2]
[351777990,1738785059792,-500.0,0.00010296,2]
[351777991,1738785059803,-291.12,0.00010296,2]
[351777992,1738785059814,-500.0,0.00010297,2]
[351777993,1738785059824,-500.0,0.00010297,2]
[351777994,1738785059833,-500.0,0.00010297,2]
[351777995,1738785059844,-500.0,0.00010297,2]
[351777996,1738785059853,-500.0,0.00010297,2]
[351777997,1738785059862,-500.0,0.00010297,2]
[351777998,1738785059872,-195.58,0.00010297,2]